bitfinex/quotes_ETHUSD_20260202
["timestamp","ask_amount","ask_price","bid_price","bid_amount"]
[1770038270296,0.93163283,2308.8,2308.0,0.001]
[1770038270592,0.0011,2309.0,2308.0,0.001]
[1770038270798,0.93169453,2308.9,2308.0,0.001]
[1770038270978,0.93169453,2308.8,2308.0,0.001]
[1770038271177,0.0011,2309.0,2308.0,0.001]
[1770038271496,0.93194977,2308.9,2308.0,0.001]
[1770038271699,0.93194977,2308.8,2308.0,0.001]
[1770038271875,0.27113901,2309.0,2308.0,0.001]
[1770038272069,0.93190157,2308.9,2308.0,0.001]
[1770038272367,0.93190157,2308.8,2308.0,0.001]
[1770038272564,0.27113901,2309.0,2308.0,0.001]
[1770038272793,0.93214504,2308.9,2308.0,0.001]
[1770038273096,0.93214504,2308.8,2308.0,0.001]
[1770038273295,0.23552879,2308.9,2308.0,0.001]
[1770038273502,0.93233122,2308.8,2308.0,0.001]
[1770038273678,0.23552879,2308.9,2308.0,0.001]
[1770038273879,0.93233124,2308.8,2308.0,0.001]
[1770038274065,0.23552879,2308.9,2308.0,0.001]
[1770038274267,0.93257178,2308.8,2308.0,2.661]
[1770038274497,0.23552879,2308.9,2308.1,0.2661]
[1770038274694,0.23552879,2308.9,2308.0,2.661]
[1770038274695,0.93257144,2308.8,2308.0,2.661]
[1770038274881,0.93253224,2308.7,2308.0,0.001]
[1770038275075,0.93253224,2308.6,2308.0,0.001]
[1770038275301,0.93253224,2308.5,2308.0,0.001]
[1770038275595,0.93283163,2308.4,2308.0,0.001]
[1770038275814,0.9327048,2308.3,2308.2,0.001]
[1770038276166,0.9327048,2308.3,2307.5,0.001]
[1770038276370,0.9327048,2308.2,2307.5,0.001]
[1770038276588,1.15200383,2308.5,2307.5,0.001]
[1770038276788,0.93276117,2308.4,2307.5,0.001]
[1770038277004,0.93276117,2308.3,2307.5,0.001]
[1770038277202,0.93276117,2308.2,2307.5,0.001]
[1770038277498,1.15200383,2308.5,2307.5,0.001]
[1770038277702,1.20249368,2308.4,2307.5,0.001]
[1770038277868,0.93267467,2308.3,2307.5,0.001]
[1770038278073,0.93267467,2308.2,2307.5,0.001]
[1770038278272,0.93267467,2308.1,2307.5,0.001]
[1770038278572,1.42182284,2308.4,2307.5,0.001]
[1770038278768,1.31983929,2308.3,2307.5,0.001]
[1770038278973,0.93223838,2308.2,2307.5,0.001]
[1770038279305,0.26981901,2308.4,2307.5,0.001]
[1770038279510,0.93220254,2308.3,2307.5,0.001]
[1770038279713,1.15200383,2308.6,2307.5,0.001]
[1770038279922,0.93225397,2308.5,2307.5,0.001]
[1770038280090,0.93225397,2308.4,2307.5,0.001]
[1770038280290,0.93225397,2308.3,2307.5,0.001]
[1770038280515,1.15200383,2308.6,2307.5,0.001]
[1770038280697,1.29324696,2308.5,2307.5,0.001]
[1770038280898,0.93252795,2308.4,2307.5,0.001]
[1770038281299,0.93252795,2308.3,2307.5,0.001]
[1770038281600,1.51272284,2308.5,2307.5,0.001]
[1770038281803,0.93299861,2308.4,2307.5,0.001]
[1770038281997,0.93299861,2308.3,2307.5,0.001]
[1770038283018,0.24457214,2308.4,2307.5,0.001]
[1770038283225,0.93299749,2308.3,2307.5,0.001]
[1770038283392,1.15200383,2308.6,2307.5,0.001]
[1770038283724,0.93334082,2308.5,2307.5,0.001]
[1770038283930,0.93334082,2308.4,2307.5,0.001]
[1770038284089,0.93334082,2308.3,2307.5,0.001]
[1770038284297,1.15200383,2308.4,2307.3,0.001]
[1770038284298,0.1024,2308.0,2307.3,0.001]
[1770038284618,2.08534465,2307.9,2307.3,0.001]
[1770038284799,2.08534465,2307.8,2307.3,0.001]
[1770038285007,0.93334082,2307.7,2307.3,0.001]
[1770038285216,0.93334082,2307.6,2307.3,0.001]
[1770038285421,1.15200383,2307.9,2307.3,0.001]
[1770038285628,0.30818232,2307.8,2307.3,0.001]
[1770038285914,0.93159594,2307.7,2307.3,0.001]
[1770038286106,0.30818232,2307.8,2307.3,0.001]
[1770038286107,0.93159594,2307.6,2307.3,0.001]
[1770038286306,0.30818232,2307.8,2307.3,0.001]
[1770038286507,0.93107083,2307.7,2307.3,0.001]
[1770038286734,1.15200383,2307.9,2307.3,0.001]
[1770038287234,0.93110317,2307.8,2307.3,0.001]
[1770038287393,0.38363309,2308.0,2307.3,0.001]
[1770038287599,0.909,2308.2,2307.3,0.001]
[1770038287923,0.93108701,2308.1,2307.7,0.001]
[1770038288227,0.29920908,2308.1,2307.7,0.001]
[1770038288394,1.15200383,2308.5,2307.7,0.001]
[1770038288594,0.00080482,2308.6,2307.7,0.001]
[1770038292207,0.1024,2308.5,2307.7,0.001]
[1770038292416,2.08264121,2308.5,2307.7,0.001]
[1770038292621,2.18504121,2308.4,2307.7,0.001]
[1770038292832,1.15200383,2308.1,2307.7,0.001]
[1770038293219,0.93063738,2308.0,2307.5,0.001]
[1770038293424,0.93063738,2307.9,2307.5,0.001]
[1770038293612,0.93063738,2307.8,2307.5,0.001]
[1770038293814,0.1024,2308.2,2307.5,0.001]
[1770038294023,0.92975082,2308.1,2307.5,0.001]
[1770038294223,0.26481774,2308.1,2307.5,0.001]
[1770038294432,0.46402275,2308.3,2307.5,0.001]
[1770038294622,0.92967581,2308.2,2307.5,0.001]
[1770038294810,0.92967581,2308.1,2307.5,0.001]
[1770038295011,0.92967581,2308.0,2307.5,0.001]
[1770038295218,1.15200383,2308.2,2307.5,0.001]
[1770038295413,2.08136105,2308.3,2307.5,0.001]
[1770038295607,1.38301195,2308.2,2307.5,0.001]
[1770038295808,0.909,2308.4,2307.5,0.001]
[1770038296008,0.92997679,2308.3,2307.5,0.001]
[1770038296209,0.92997679,2308.2,2307.5,0.001]
[1770038296425,2.06100383,2308.4,2307.5,0.001]
[1770038296630,0.93052461,2308.3,2307.5,0.001]
[1770038296936,1.22967745,2308.2,2307.5,0.001]
[1770038297240,0.29915284,2308.2,2307.5,0.001]
[1770038297436,0.909,2308.4,2307.5,0.001]
[1770038297629,0.93051417,2308.3,2307.5,0.001]
[1770038297830,0.909,2308.4,2307.5,0.001]
[1770038298027,0.93046979,2308.3,2307.5,0.001]
[1770038298345,0.909,2308.4,2307.5,0.001]
[1770038298557,0.93071539,2308.3,2307.5,0.001]
[1770038298729,0.909,2308.4,2307.5,0.001]
[1770038299046,0.93081458,2308.3,2307.5,0.001]
[1770038299208,0.909,2308.4,2307.5,0.001]
[1770038299752,0.00080482,2308.6,2307.5,0.001]
[1770038300518,0.00080482,2308.6,2307.6,0.2335703]
[1770038300710,0.0011,2308.3,2307.6,0.2335703]
[1770038300911,0.00080482,2308.6,2307.6,0.2335703]
[1770038301430,0.00080482,2308.6,2307.7,1.08332972]
[1770038301959,0.0011,2309.0,2308.3,0.2335703]
[1770038302120,0.0011,2309.2,2308.3,1.31335293]
[1770038302845,0.0011,2309.2,2308.3,1.07978263]
[1770038303048,0.0011,2309.2,2307.7,4.97049994]
[1770038303049,0.0011,2309.2,2307.8,0.2335703]
[1770038303235,0.0011,2309.2,2307.7,1.08332972]
[1770038303438,0.0011,2309.2,2307.6,1.30470654]
[1770038304451,0.0011,2309.2,2307.7,0.2335703]
[1770038304950,0.0011,2309.2,2307.9,0.2335703]
[1770038305125,0.0011,2309.2,2307.9,1.33670996]
[1770038305324,0.0011,2309.2,2307.9,1.10313966]
[1770038305525,0.0011,2309.2,2307.7,0.2335703]
[1770038305818,0.0011,2309.2,2307.8,2.66]
[1770038307435,0.0011,2309.2,2308.0,1.0831889]
[1770038309055,0.0011,2309.2,2308.2,10.564256]
[1770038309238,0.0011,2309.2,2308.1,2.66]
[1770038309549,0.0011,2309.2,2308.2,0.37431889]
[1770038310352,0.0011,2309.2,2308.2,1.45741157]
[1770038311039,0.0011,2309.2,2308.3,2.66]
[1770038311232,0.0011,2309.2,2308.4,2.66]
[1770038311555,0.0011,2309.2,2308.5,2.66]
[1770038311728,0.0011,2309.2,2308.6,0.266]
[1770038313228,0.0011,2309.0,2308.6,0.266]
[1770038314831,0.0011,2309.2,2308.7,2.66]
[1770038315359,0.0011,2309.2,2308.6,1.34890319]
[1770038315360,0.0011,2309.2,2308.8,2.66]
[1770038315661,0.0011,2309.2,2308.6,1.34890319]
[1770038315662,0.0011,2309.2,2308.9,2.66]
[1770038315857,0.0011,2309.2,2309.0,0.266]
[1770038316658,0.0011,2309.2,2308.7,3.7428252]
[1770038316855,0.0011,2309.2,2308.7,2.66]
[1770038318261,0.0011,2309.2,2308.6,0.266]
[1770038320860,0.0011,2309.2,2308.6,2.926]
[1770038322963,0.0011,2309.2,2308.6,4.00888663]
[1770038323161,0.0011,2309.2,2308.7,0.40088866]
[1770038327053,0.0011,2309.2,2308.9,0.001]
[1770038327253,0.0011,2309.0,2308.9,0.001]
[1770038327472,0.23672805,2309.6,2309.0,2.66]
[1770038327672,0.0011,2310.2,2309.1,0.2661]
[1770038329170,0.0011,2310.2,2309.1,1.34877248]
[1770038331171,0.0011,2310.2,2309.1,0.2661]
[1770038331380,0.93326112,2310.1,2309.1,0.2661]
[1770038331676,0.93326112,2310.0,2309.0,2.66]
[1770038331879,0.93326112,2309.9,2309.0,2.66]
[1770038332180,1.15310383,2310.2,2309.0,2.66]
[1770038332350,0.93331457,2310.1,2309.0,2.66]
[1770038332552,0.93331457,2310.0,2309.0,2.66]
[1770038332797,0.93331457,2309.9,2309.1,0.2661]
[1770038332952,0.93318172,2309.8,2308.9,0.001]
[1770038333150,1.16642082,2310.1,2308.9,0.001]
[1770038333354,2.09960709,2310.0,2308.9,0.001]
[1770038333661,0.93318627,2309.9,2308.9,0.001]
[1770038334170,0.93318627,2309.8,2308.9,0.001]
[1770038334374,0.93318627,2309.7,2308.9,0.001]
[1770038334572,0.93318627,2309.6,2308.9,0.001]
[1770038334887,1.16642082,2309.8,2308.9,0.001]
[1770038334888,0.93318627,2309.5,2308.9,0.001]
[1770038335075,1.16642082,2309.8,2308.9,0.001]
[1770038335276,1.2048234,2309.7,2308.9,0.001]
[1770038335463,0.93356269,2309.6,2308.9,0.001]
[1770038339356,2.09998351,2309.5,2308.9,0.001]
[1770038339556,0.93356269,2309.4,2308.9,0.001]
[1770038339757,0.93356269,2309.3,2308.9,0.001]
[1770038339968,0.93356269,2309.2,2308.9,0.001]
[1770038340168,0.93356269,2309.1,2308.9,0.001]
[1770038340373,1.16642082,2309.4,2308.9,0.001]
[1770038340374,1.16642082,2309.4,2309.1,0.001]
[1770038340575,0.93430941,2309.3,2308.9,0.001]
[1770038340888,0.93430941,2309.2,2308.9,0.001]
[1770038341099,0.93430941,2309.1,2308.9,0.001]
[1770038341297,1.16642082,2309.4,2308.9,0.001]
[1770038341609,0.93429496,2309.3,2308.9,0.001]
[1770038341785,0.93429496,2309.2,2308.9,0.001]
[1770038342103,1.16642082,2309.4,2308.6,0.001]
[1770038342299,0.93414787,2309.3,2308.6,0.001]
[1770038342504,0.93414787,2309.2,2308.6,0.001]
[1770038342702,1.16642082,2309.4,2308.6,0.001]
[1770038342892,0.93405413,2309.3,2308.6,0.001]
[1770038343096,0.93405413,2309.2,2308.6,0.001]
[1770038343405,1.16642082,2309.5,2308.6,0.001]
[1770038343582,2.37160735,2309.4,2308.6,0.001]
[1770038343782,1.16642082,2308.9,2307.9,0.001]
[1770038344003,1.16642082,2308.7,2308.1,0.001]
[1770038344306,2.46499993,2308.6,2307.9,0.001]
[1770038344506,0.93392582,2308.5,2307.9,0.001]
[1770038344804,0.36465329,2308.6,2307.9,0.001]
[1770038345102,1.16642082,2308.9,2307.9,0.001]
[1770038345301,0.93283018,2308.8,2307.9,0.001]
[1770038345475,1.54618629,2309.1,2307.9,0.001]
[1770038345476,0.93283018,2308.7,2307.9,0.001]
[1770038345676,1.16642082,2309.0,2307.9,0.001]
[1770038346002,0.93237495,2308.9,2307.9,0.001]
[1770038346205,0.93237495,2308.8,2307.9,0.001]
[1770038346409,2.58505685,2309.4,2307.9,0.001]
[1770038346410,1.16642082,2309.3,2307.9,0.001]
[1770038346599,0.93235493,2309.2,2307.9,0.001]
[1770038346908,0.93235493,2309.1,2307.9,0.001]
[1770038347104,0.93235493,2309.0,2307.9,0.001]
[1770038347304,0.93235493,2308.9,2307.9,0.001]
[1770038347505,0.93235493,2308.8,2307.9,0.001]
[1770038347698,1.16642082,2309.1,2307.9,0.001]
[1770038347899,1.20319553,2309.0,2307.9,0.001]
[1770038348203,2.09835564,2308.9,2307.9,0.001]
[1770038348403,0.93193482,2308.8,2307.9,0.001]
[1770038348611,0.93193482,2308.7,2307.9,0.001]
[1770038348777,1.16642082,2308.9,2307.9,0.001]
[1770038348982,0.93144067,2308.8,2307.9,0.001]
[1770038349190,0.93144067,2308.7,2307.9,0.001]
[1770038349395,1.43768153,2309.0,2307.9,0.001]
[1770038349589,1.22948599,2308.9,2307.9,0.001]
[1770038349789,0.93109921,2308.8,2307.9,0.001]
[1770038350006,0.93109921,2308.7,2307.9,0.001]
[1770038350208,0.29838678,2308.9,2307.9,0.001]
[1770038350408,0.93091864,2308.8,2307.9,0.001]
[1770038350576,0.93091864,2308.7,2307.9,0.001]
[1770038350776,0.29838678,2308.9,2307.9,0.001]
[1770038351011,0.93069054,2308.8,2307.9,0.001]
[1770038351207,0.93069054,2308.7,2307.9,0.001]
[1770038351417,0.29838678,2308.9,2307.9,0.001]
[1770038351588,0.92981665,2308.8,2307.9,0.001]
[1770038351784,1.16642082,2309.2,2307.9,0.001]
[1770038351986,0.92983975,2309.1,2307.9,0.001]
[1770038352204,0.27126071,2309.4,2307.9,0.001]
[1770038352403,0.92988118,2309.3,2307.9,0.001]
[1770038352596,0.92988118,2309.2,2307.9,0.001]
[1770038352795,1.16642082,2309.5,2307.9,0.001]
[1770038352995,0.93014865,2309.4,2307.9,0.001]
[1770038353302,0.93014865,2309.3,2307.9,0.001]
[1770038353505,0.93014865,2309.2,2307.9,0.37552748]
[1770038353810,1.16642082,2309.5,2307.9,0.37552748]
[1770038354114,0.93026172,2309.4,2307.9,0.37552748]
[1770038354321,0.93026172,2309.3,2308.1,0.001]
[1770038354629,0.0011,2308.6,2308.1,0.001]
[1770038357125,0.0011,2308.6,2308.1,2.661]
[1770038357330,0.0011,2308.6,2308.2,0.2661]
[1770038359017,0.0011,2308.8,2308.2,4.00919176]
[1770038359319,2.17682082,2309.7,2308.2,2.9261]
[1770038359614,0.0012,2309.5,2308.2,1.34919153]
[1770038359793,0.93093657,2309.4,2308.2,1.34919153]
[1770038359989,0.0012,2309.5,2308.3,0.56827301]
[1770038361125,0.0012,2309.5,2308.4,1.08300121]
[1770038362720,0.908,2309.7,2308.4,1.08300121]
[1770038362891,0.0012,2309.6,2308.4,1.08300121]
[1770038363088,0.0012,2309.6,2308.3,1.65128514]
[1770038363292,0.0012,2309.6,2308.4,0.62496398]
[1770038363795,0.0012,2309.6,2308.3,1.65131715]
[1770038363989,0.0012,2309.6,2308.3,0.56827301]
[1770038364220,2.09997012,2309.6,2308.1,0.001]
[1770038364527,1.16642082,2309.4,2308.1,0.001]
[1770038364695,0.9335493,2309.3,2308.1,0.001]
[1770038365018,0.9323493,2309.2,2308.1,0.001]
[1770038366016,0.0012,2309.1,2308.1,0.001]
[1770038366215,0.0012,2309.1,2308.1,0.37551695]
[1770038367119,1.16642082,2309.5,2308.1,0.37551695]
[1770038367319,0.93417079,2309.4,2308.1,0.37551695]
[1770038367526,0.93297079,2309.3,2308.1,0.37551695]
[1770038368330,0.0012,2309.4,2308.1,0.37551695]
[1770038368331,0.93297079,2309.2,2308.1,0.37551695]
[1770038368531,1.16762082,2309.4,2308.1,0.37551695]
[1770038368713,0.93319481,2309.3,2308.3,0.001]
[1770038368910,0.93319481,2309.2,2308.3,0.001]
[1770038369115,0.0011,2309.3,2308.3,0.001]
[1770038369314,0.93322257,2309.2,2308.3,0.001]
[1770038369622,0.0011,2309.3,2308.3,0.001]
[1770038369930,0.93448873,2309.2,2308.3,0.001]
[1770038370131,0.0012,2309.2,2308.3,0.001]
[1770038371231,0.0012,2309.2,2308.4,2.66]
[1770038371433,0.0012,2309.2,2308.5,0.2661]
[1770038372031,0.0011,2309.3,2308.5,0.2661]
[1770038372239,0.0023,2309.3,2308.5,0.2661]
[1770038373032,0.0011,2309.3,2308.6,2.66]
[1770038373228,0.0011,2309.5,2308.5,4.00903944]
[1770038373428,0.0011,2309.5,2308.7,1.08286048]
[1770038374007,0.0011,2309.8,2308.8,9.74348875]
[1770038374215,0.0011,2310.1,2309.2,9.74348875]
[1770038374522,0.0011,2310.2,2309.2,9.74348875]
[1770038374719,0.0011,2310.4,2309.2,9.74348875]
[1770038374914,0.0023,2310.4,2309.3,0.97434887]
[1770038375118,0.0023,2310.4,2309.4,0.908]
[1770038375331,0.0023,2310.4,2309.5,1.08248538]
[1770038375539,1.54618629,2311.4,2309.7,0.2335703]
[1770038375540,1.16642082,2311.4,2309.7,0.2335703]
[1770038375712,0.0012,2311.2,2310.0,9.74348875]
[1770038375914,0.0012,2311.4,2309.7,1.33952474]
[1770038376208,0.0012,2311.6,2309.7,1.33952474]
[1770038377413,0.0012,2311.6,2309.8,1.08234479]
[1770038377615,0.0012,2311.5,2309.9,0.67512487]
[1770038379338,0.0012,2311.5,2310.0,1.08225108]
[1770038379513,0.0012,2311.5,2310.1,2.66]
[1770038379719,0.0012,2311.5,2310.3,9.74348875]
[1770038379947,0.0012,2311.5,2310.3,3.568]
[1770038380150,0.0012,2311.5,2310.4,0.3568]
[1770038382032,0.0012,2311.5,2310.4,1.43882389]
[1770038382233,0.0012,2311.5,2310.4,0.3568]
[1770038382852,0.0011,2311.4,2310.4,0.3568]
[1770038383232,0.0011,2311.4,2310.4,1.4388417]
[1770038383437,0.0012,2311.3,2310.5,0.50068417]
[1770038384738,0.0012,2311.3,2310.5,3.16068417]
[1770038388646,0.0012,2311.3,2310.6,2.66]
[1770038392672,0.0011,2311.4,2310.6,2.66]
[1770038392847,0.0012,2311.2,2310.6,2.66]
[1770038393044,0.0012,2311.2,2310.7,0.31606842]
[1770038394695,0.0012,2311.2,2310.7,2.66]
[1770038395452,0.0012,2311.2,2310.4,1.08204441]
[1770038395453,0.0011,2311.4,2310.8,2.66]
[1770038395658,0.0012,2311.3,2310.9,2.66]
[1770038396475,0.0003,2311.6,2311.0,2.66]
[1770038398058,0.44492466,2311.7,2311.0,1.08178097]
[1770038398307,0.0011,2311.9,2311.1,3.20089121]
[1770038398456,0.0011,2311.9,2311.2,2.66]
[1770038399159,0.0011,2311.9,2311.3,2.66]
[1770038400585,0.0011,2311.9,2310.6,2.66]
[1770038400883,0.0011,2311.9,2310.3,2.66]
[1770038401187,0.0011,2311.9,2310.2,1.98913561]
[1770038401188,0.9280486,2311.8,2310.4,0.46491356]
[1770038401386,0.9280486,2311.7,2309.9,1.58212487]
[1770038401600,0.9280486,2311.6,2309.9,1.58212487]
[1770038401767,2.19686942,2311.6,2309.9,0.907]
[1770038402095,0.1024,2311.3,2309.9,0.907]
[1770038402389,1.26882082,2311.1,2309.8,0.001]
[1770038402591,0.1024,2310.9,2309.8,0.001]
[1770038402887,2.19686942,2310.9,2309.8,0.001]
[1770038403090,0.9280486,2310.8,2309.8,0.001]
[1770038403255,2.31379614,2311.2,2309.8,0.001]
[1770038403256,1.16642082,2311.2,2309.8,0.001]
[1770038403455,2.37002589,2311.1,2309.8,0.001]
[1770038403656,1.16642082,2311.5,2309.8,1.1415703]
[1770038403870,0.93219737,2311.4,2309.8,1.1415703]
[1770038404092,1.16642082,2311.7,2309.8,1.1415703]
[1770038404392,0.93209739,2311.6,2309.9,1.16789281]
[1770038404694,0.93209739,2311.5,2309.9,1.16789281]
[1770038405018,0.93209739,2311.4,2310.2,10.53735783]
[1770038405194,0.0011,2311.9,2310.4,1.08206371]
[1770038405594,0.9327747,2311.8,2310.4,1.08206371]
[1770038405799,0.9327747,2311.7,2310.3,2.13581045]
[1770038405997,0.9327747,2311.6,2310.3,2.13581045]
[1770038406192,1.16752082,2311.9,2310.3,2.13581045]
[1770038406414,1.16642082,2311.6,2310.4,1.70017693]
[1770038406719,2.09931236,2311.5,2310.0,1.0822169]
[1770038406889,0.93289154,2311.4,2310.0,1.0832169]
[1770038407087,0.93289154,2311.3,2310.0,0.001]
[1770038407295,0.0011,2311.3,2310.0,1.08325108]
[1770038407716,0.0011,2311.3,2310.1,10.53735783]
[1770038407917,0.0011,2311.3,2310.2,1.16206089]
[1770038409303,0.0011,2311.3,2310.3,1.08211054]
[1770038410989,0.0011,2311.3,2310.4,2.66]
[1770038411311,0.0011,2311.3,2310.5,1.08201687]
[1770038411514,0.0011,2311.3,2310.6,2.66]
[1770038411820,0.0011,2311.3,2310.7,0.37420169]
[1770038414920,0.0011,2311.3,2310.8,2.66]
[1770038419823,0.0011,2311.5,2310.8,3.74186627]
[1770038420822,0.0011,2311.1,2310.8,3.74186627]
[1770038421018,0.0011,2311.5,2310.8,3.74186627]
[1770038421222,0.0011,2311.9,2310.9,1.89809314]
[1770038421526,0.0011,2311.9,2311.0,2.66]
[1770038422900,0.0011,2311.9,2311.0,3.74178231]
[1770038423296,0.0011,2311.9,2311.1,2.66]
[1770038423500,0.0011,2312.3,2311.1,2.66]
[1770038423702,0.0011,2312.3,2311.2,2.50957016]
[1770038423896,0.0011,2312.3,2311.3,2.66]
[1770038426631,0.0011,2312.3,2311.3,3.74163898]
[1770038426833,0.0011,2312.5,2311.7,0.01729393]
[1770038427006,0.0011,2312.7,2311.8,2.66]
[1770038427328,0.0011,2312.7,2311.9,0.35842939]
[1770038428112,0.0011,2312.7,2312.0,1.08131487]
[1770038428929,0.907,2313.3,2312.0,1.08131487]
[1770038429099,0.42246182,2313.5,2312.1,10.53735783]
[1770038429826,0.42246182,2313.5,2312.0,1.08131487]
[1770038430039,0.42246182,2313.5,2312.1,0.57650713]
[1770038430437,0.42246182,2313.5,2312.1,1.65774189]
[1770038431331,0.42246182,2313.5,2312.1,0.57650713]
[1770038431645,0.42246182,2313.5,2312.1,1.65777385]
[1770038434318,0.0011,2313.3,2312.1,1.65777385]
[1770038434530,0.0011,2313.3,2312.2,1.6795085]
[1770038437218,0.0011,2313.3,2312.2,0.59830122]
[1770038437419,0.0011,2313.3,2312.1,1.08124831]
[1770038438045,0.0011,2313.3,2312.0,4.32525512]
[1770038438249,0.0011,2313.3,2312.1,1.08124639]
[1770038439248,0.0011,2313.3,2311.7,5.23279949]
[1770038439249,0.0011,2313.3,2311.8,1.31497872]
[1770038439645,0.0011,2313.3,2311.9,2.66]
[1770038439863,0.0011,2313.3,2312.2,10.53735783]
[1770038440358,0.0011,2313.3,2312.0,0.39749787]
[1770038440557,0.0011,2313.3,2311.8,11.85233655]
[1770038440558,0.0011,2313.3,2311.9,0.2335703]
[1770038440765,0.0011,2313.3,2311.9,0.25086423]
[1770038441655,0.0011,2313.3,2312.0,1.08131487]
[1770038442051,0.0011,2313.3,2312.1,0.2335703]
[1770038442972,0.0011,2313.3,2312.2,10.53735783]
[1770038443273,0.0011,2313.3,2312.3,1.07709281]
[1770038444350,0.0011,2313.3,2312.4,1.08112783]
[1770038446881,0.0011,2313.1,2312.4,1.08112783]
[1770038447213,0.0011,2313.5,2312.5,11.44435783]
[1770038447485,0.0011,2313.5,2312.5,0.907]
[1770038447787,0.92747387,2313.4,2312.3,0.001]
[1770038447992,0.0011,2313.5,2312.3,0.001]
[1770038447993,0.92747387,2313.3,2312.3,0.001]
[1770038448157,2.401604,2313.4,2312.3,0.001]
[1770038448353,1.16795018,2313.3,2312.3,0.001]
[1770038448559,0.2402704,2313.3,2312.3,0.001]
[1770038448773,3.914067,2313.4,2312.3,0.001]
[1770038449052,0.92820728,2313.3,2312.3,0.001]
[1770038449380,0.92897698,2313.2,2312.3,0.001]
[1770038449586,6.258969,2313.4,2312.3,0.001]
[1770038449784,0.92897667,2313.3,2312.3,0.001]
[1770038449987,0.92897667,2313.2,2312.3,0.001]
[1770038450167,1.16752082,2313.5,2312.3,0.001]
[1770038450365,2.37743001,2313.4,2312.3,0.001]
[1770038450568,0.92939848,2313.3,2312.3,0.001]
[1770038452575,0.28161071,2313.4,2312.3,0.001]
[1770038452774,0.0011,2313.5,2312.3,0.001]
[1770038454113,0.93120315,2313.4,2312.3,0.001]
[1770038454274,0.93120315,2313.3,2312.3,0.001]
[1770038454473,1.16752082,2313.5,2312.3,0.001]
[1770038454688,0.93160371,2313.4,2312.3,0.001]
[1770038455000,0.93160371,2313.3,2312.3,0.001]
[1770038455211,1.16752082,2313.5,2312.3,0.001]
[1770038455514,0.9320839,2313.4,2312.3,0.001]
[1770038455713,0.9320839,2313.3,2312.3,0.001]
[1770038456008,0.9320839,2313.2,2312.3,0.001]
[1770038456211,1.16752082,2313.5,2312.3,0.001]
[1770038456386,2.37073268,2313.4,2312.3,0.001]
[1770038456709,0.93294115,2313.3,2312.3,0.001]
[1770038456913,0.93294115,2313.2,2312.3,0.001]
[1770038457118,0.27137071,2313.4,2312.3,0.001]
[1770038457414,0.93292335,2313.3,2312.3,0.001]
[1770038457581,0.93292335,2313.2,2312.3,0.001]
[1770038458924,0.93292335,2313.2,2312.3,2.661]
[1770038459119,1.43779153,2313.4,2312.3,2.661]
[1770038459120,0.27137071,2313.4,2312.3,2.661]
[1770038459299,0.93302709,2313.3,2312.3,2.661]
[1770038459613,0.0011,2313.5,2312.4,2.66]
[1770038459787,0.0011,2313.5,2312.6,9.71542671]
[1770038460604,0.0011,2313.2,2312.6,9.71542671]
[1770038460804,0.0011,2313.4,2312.6,9.71542671]
[1770038461007,0.0011,2313.4,2312.8,1.08094085]
[1770038461709,0.0011,2313.7,2312.8,1.98794085]
[1770038461913,0.0011,2314.3,2313.1,0.2335703]
[1770038462113,1.16642082,2314.8,2313.1,0.2335703]
[1770038462313,0.93223656,2314.7,2313.1,0.2335703]
[1770038462615,1.16642082,2314.9,2313.1,1.22847]
[1770038462616,0.93223656,2314.6,2313.1,1.22847]
[1770038462831,1.16642082,2314.9,2313.1,1.22847]
[1770038463117,0.93127674,2314.8,2313.4,9.71542671]
[1770038463320,1.16642082,2315.1,2313.2,1.09804786]
[1770038463527,0.93029616,2315.0,2313.3,0.66495336]
[1770038463692,0.93029616,2314.9,2313.3,0.66495336]
[1770038464018,0.93029616,2314.8,2313.3,0.66495336]
[1770038464202,1.16642082,2315.1,2313.3,0.66495336]
[1770038464411,0.9295677,2315.0,2313.3,0.66495336]
[1770038464613,1.16642082,2315.2,2313.3,0.66495336]
[1770038464924,0.92954802,2315.1,2313.3,0.66495336]
[1770038465140,2.31379614,2315.6,2313.3,0.66495336]
[1770038465141,1.56707301,2315.7,2314.1,9.71542671]
[1770038465349,0.40065219,2315.7,2314.2,0.2335703]
[1770038465501,12.79446325,2316.7,2314.1,0.907]
[1770038465502,1.16642082,2316.5,2314.5,0.2335703]
[1770038465703,0.92752335,2316.4,2314.9,0.2335703]
[1770038465905,1.16642082,2316.7,2314.8,9.71542671]
[1770038466212,1.16642082,2316.5,2314.5,0.99662909]
[1770038466527,0.1024,2316.1,2314.2,0.907]
[1770038466727,0.9275401,2316.0,2314.2,0.907]
[1770038466896,0.1024,2315.8,2314.2,0.907]
[1770038467097,0.1024,2315.6,2314.2,0.907]
[1770038467326,0.1024,2315.6,2314.0,1.08035638]
[1770038467509,0.1024,2315.6,2313.6,14.03768687]
[1770038467510,0.1024,2315.6,2313.9,1.08040103]
[1770038467713,0.1024,2315.6,2314.0,0.54022577]
[1770038467907,0.1024,2315.6,2313.9,1.08041214]
[1770038468130,0.1024,2315.6,2313.5,3.25690316]
[1770038468131,0.1024,2315.4,2313.5,3.25690316]
[1770038468337,0.1024,2315.6,2313.6,1.08055795]
[1770038468338,0.1024,2315.2,2313.6,1.08055795]
[1770038468536,0.1024,2315.2,2313.5,3.25689571]
[1770038468744,1.16642082,2315.6,2313.9,4.3216885]
[1770038468904,0.9254108,2315.5,2313.7,0.2335703]
[1770038469103,1.16642082,2316.3,2314.3,9.71542671]
[1770038469334,0.92520926,2316.2,2314.3,9.71542671]
[1770038469630,2.07242082,2316.5,2314.4,0.97154267]
[1770038469631,3.308524,2316.4,2314.4,0.97154267]
[1770038469804,1.02670744,2316.3,2314.2,0.2335703]